[Event "FIDE Open World Rapid 2024"]
[Site "New York"]
[Date "2024.12.27"]
[Round "6.40"]
[White "Amar, Elham"]
[Black "Bortnyk, Olexandr"]
[Result "0-1"]
[ECO "C41"]
[WhiteElo "2534"]
[BlackElo "2603"]
[Annotator "ChessBase"]
[PlyCount "188"]
[EventDate "2024.12.14"]
[EventType "swiss"]
[EventCountry "USA"]
[SourceTitle "playchess.com"]
[Source "ChessBase"]
[SourceQuality "1"]
[TimeControl "900+10"]

1. e4 {[%emt 0:00:04]} d6 {[%emt 0:00:01]} 2. d4 {[%emt 0:00:01]} Nf6 {[%emt 0:00:01]} 3. Nc3 {[%emt 0:00:02]} e5 {[%emt 0:00:01]} 4. Nf3 {[%emt 0:00:02]} Nbd7 {[%emt 0:00:02]} 5. Rg1 {[%emt 0:00:15]} c6 {[%emt 0:00:03]} 6. g4 {[%emt 0:00:03]} h6 {[%emt 0:00:02]} 7. Be3 {[%emt 0:00:01]} Be7 {[%emt 0:00:06]} 8. Qd2 {[%emt 0:00:15]} exd4 {[%emt 0:00:03]} 9. Nxd4 {[%emt 0:00:04]} Ne5 {[%emt 0:00:07]} 10. f4 {[%emt 0:00:35]} Nexg4 {[%emt 0:00:13]} 11. O-O-O {[%emt 0:00:23]} g6 {[%emt 0:01:29]} 12. h3 {[%emt 0:02:05]} Nxe3 {[%emt 0:00:03]} 13. Qxe3 {[%emt 0:00:01]} Nd7 {[%emt 0:03:30]} 14. Kb1 {[%emt 0:01:01]} Qa5 {[%emt 0:00:15]} 15. Bc4 {[%emt 0:01:14]} Nb6 {[%emt 0:01:54]} 16. Bb3 {[%emt 0:00:51]} Qc5 {[%emt 0:01:44]} 17. Qg3 {[%emt 0:00:59]} Rf8 {[%emt 0:00:43]} 18. e5 {[%emt 0:00:32]} d5 {[%emt 0:00:02]} 19. e6 {[%emt 0:00:23]} Bxe6 {[%emt 0:00:20]} 20. Nxe6 {[%emt 0:00:05]} fxe6 {[%emt 0:00:01]} 21. Qxg6+ {[%emt 0:00:03]} Kd7 {[%emt 0:00:01]} 22. Qxh6 {[%emt 0:03:05]} Rae8 {[%emt 0:00:39]} 23. Rge1 {[%emt 0:00:40]} Bd6 {[%emt 0:01:23]} 24. f5 {[%emt 0:00:31]} exf5 {[%emt 0:01:33]} 25. Rxe8 {[%emt 0:00:07]} Kxe8 {[%emt 0:00:02]} 26. h4 {[%emt 0:01:39]} Be7 {[%emt 0:01:25]} 27. a4 {[%emt 0:00:36]} Qd6 {[%emt 0:00:28]} 28. Qh5+ {[%emt 0:00:03]} Kd8 {[%emt 0:00:01]} 29. a5 {[%emt 0:00:32]} Nd7 {[%emt 0:00:02]} 30. Bxd5 {[%emt 0:00:55]} cxd5 {[%emt 0:00:02]} 31. Nxd5 {[%emt 0:00:01]} Qe5 {[%emt 0:00:46]} 32. Qf3 {[%emt 0:00:29]} Bd6 {[%emt 0:02:10]} 33. Ne3 {[%emt 0:00:55]} Bc7 {[%emt 0:00:23]} 34. a6 {[%emt 0:00:22]} Qe4 {[%emt 0:00:14]} 35. Qxe4 {[%emt 0:00:02]} fxe4 {[%emt 0:00:00]} 36. axb7 {[%emt 0:00:01]} Rf3 {[%emt 0:00:49]} 37. Nd5 {[%emt 0:00:18]} Bg3 {[%emt 0:00:04]} 38. Rd4 {[%emt 0:00:25]} e3 {[%emt 0:00:26]} 39. Re4 {[%emt 0:00:00]} Nc5 {[%emt 0:00:05]} 40. Rxe3 {[%emt 0:00:23]} Rxe3 {[%emt 0:00:24]} 41. Nxe3 {[%emt 0:00:01]} Nxb7 {[%emt 0:00:00]} 42. h5 {[%emt 0:00:01]} Nd6 {[%emt 0:00:12]} 43. Ka2 {[%emt 0:00:35]} Bf4 {[%emt 0:00:09]} 44. Ng4 {[%emt 0:00:11]} Nf7 {[%emt 0:00:13]} 45. b4 {[%emt 0:00:09]} Kd7 {[%emt 0:00:02]} 46. c4 {[%emt 0:00:32]} Ke6 {[%emt 0:00:12]} 47. Kb3 {[%emt 0:00:01]} Kf5 {[%emt 0:00:04]} 48. Nf2 {[%emt 0:00:01]} Ne5 {[%emt 0:00:06]} 49. c5 {[%emt 0:00:12]} Ke6 {[%emt 0:00:16]} 50. Ka4 {[%emt 0:00:33]} Kd5 {[%emt 0:00:04]} 51. Kb5 {[%emt 0:00:21]} Bd2 {[%emt 0:00:04]} 52. h6 {[%emt 0:00:55]} Bxh6 {[%emt 0:00:08]} 53. Ka6 {[%emt 0:00:01]} Be3 {[%emt 0:00:15]} 54. Nh1 {[%emt 0:00:12]} Nd3 {[%emt 0:00:36]} 55. Kxa7 {[%emt 0:00:11]} Nxb4 {[%emt 0:00:01]} 56. Ng3 {[%emt 0:00:09]} Bxc5+ {[%emt 0:00:10]} 57. Kb7 {[%emt 0:00:01]} Ke5 {[%emt 0:00:05]} 58. Ne2 {[%emt 0:00:11]} Na2 {[%emt 0:00:02]} 59. Kc6 {[%emt 0:00:03]} Be3 {[%emt 0:00:16]} 60. Kb5 {[%emt 0:00:06]} Kd5 {[%emt 0:00:01]} 61. Ng3 {[%emt 0:00:12]} Bg5 {[%emt 0:00:19]} 62. Ne2 {[%emt 0:00:20]} Bd2 {[%emt 0:00:02]} 63. Ng3 {[%emt 0:00:07]} Nc3+ {[%emt 0:00:01]} 64. Kb6 {[%emt 0:00:15]} Bg5 {[%emt 0:00:19]} 65. Nh5 {[%emt 0:00:21]} Ke5 {[%emt 0:00:14]} 66. Ng7 {[%emt 0:00:08]} Nd5+ {[%emt 0:00:01]} 67. Kc6 {[%emt 0:00:17]} Nf6 {[%emt 0:00:01]} 68. Kc5 {[%emt 0:00:10]} Bh6 {[%emt 0:00:02]} 69. Kc6 {[%emt 0:00:08]} Bxg7 {[%emt 0:00:02]} 70. Kc5 {[%emt 0:00:02]} Nd5 {[%emt 0:00:05]} 71. Kc4 {[%emt 0:00:03]} Bf8 {[%emt 0:00:11]} 72. Kd3 {[%emt 0:00:01]} Bc5 {[%emt 0:00:06]} 73. Kc4 {[%emt 0:00:04]} Bd4 {[%emt 0:00:01]} 74. Kd3 {[%emt 0:00:11]} Ne3 {[%emt 0:00:05]} 75. Ke2 {[%emt 0:00:03]} Ke4 {[%emt 0:00:02]} 76. Kf2 {[%emt 0:00:04]} Nf5+ {[%emt 0:00:10]} 77. Kg2 {[%emt 0:00:09]} Be3 {[%emt 0:00:20]} 78. Kh2 {[%emt 0:00:08]} Kf3 {[%emt 0:00:04]} 79. Kh3 {[%emt 0:00:01]} Ng3 {[%emt 0:00:43]} 80. Kh2 {[%emt 0:00:04]} Bd4 {[%emt 0:00:02]} 81. Kh3 {[%emt 0:00:01]} Bg1 {[%emt 0:00:02]} 82. Kh4 {[%emt 0:00:03]} Ne4 {[%emt 0:00:10]} 83. Kh5 {[%emt 0:00:04]} Kf4 {[%emt 0:00:16]} 84. Kg6 {[%emt 0:00:03]} Ng5 {[%emt 0:00:01]} 85. Kf6 {[%emt 0:00:13]} Bc5 {[%emt 0:00:02]} 86. Kg6 {[%emt 0:00:02]} Bd4 {[%emt 0:00:11]} 87. Kh5 {[%emt 0:00:13]} Kf5 {[%emt 0:00:05]} 88. Kh4 {[%emt 0:00:02]} Bf2+ {[%emt 0:00:12]} 89. Kh5 {[%emt 0:00:01]} Bg3 {[%emt 0:00:11]} 90. Kh6 {[%emt 0:00:02]} Ne6 {[%emt 0:00:01]} 91. Kh7 {[%emt 0:00:10]} Bf4 {[%emt 0:00:10]} 92. Kh8 {[%emt 0:00:04]} Kg6 {[%emt 0:00:03]} 93. Kg8 {[%emt 0:00:02]} Bd6 {[%emt 0:00:10]} 94. Kh8 {[%emt 0:00:05]} Ng5 {[%emt 0:00:03]} 0-1

[Event "FIDE Open World Rapid 2024"]
[Site "New York"]
[Date "2024.12.27"]
[Round "6.40"]
[White "Juksta, Karolis"]
[Black "Esquivel Golcher, Luis Enrique"]
[Result "1-0"]
[ECO "D20"]
[WhiteElo "2403"]
[BlackElo "2081"]
[Annotator "ChessBase"]
[PlyCount "89"]
[EventDate "2024.12.14"]
[EventType "swiss"]
[EventCountry "USA"]
[SourceTitle "playchess.com"]
[Source "ChessBase"]
[SourceQuality "1"]
[TimeControl "900+10"]

1. d4 {[%emt 0:00:03]} e6 {[%emt 0:00:01]} 2. e4 {[%emt 0:00:06]} d5 {[%emt 0:00:01]} 3. exd5 {[%emt 0:00:04]} exd5 {[%emt 0:00:04]} 4. Nf3 {[%emt 0:00:02]} Bd6 {[%emt 0:00:01]} 5. c4 {[%emt 0:00:03]} dxc4 {[%emt 0:00:02]} 6. Bxc4 {[%emt 0:00:03]} Nf6 {[%emt 0:00:01]} 7. O-O {[%emt 0:00:29]} O-O {[%emt 0:00:01]} 8. Nc3 {[%emt 0:00:08]} Nbd7 {[%emt 0:00:04]} 9. Bb3 {[%emt 0:03:04]} Nb6 {[%emt 0:00:09]} 10. Bg5 {[%emt 0:00:40]} Bg4 {[%emt 0:00:08]} 11. h3 {[%emt 0:00:08]} Bh5 {[%emt 0:00:02]} 12. Re1 {[%emt 0:02:11]} h6 {[%emt 0:01:11]} 13. Bh4 {[%emt 0:00:11]} g5 {[%emt 0:01:04]} 14. Bg3 {[%emt 0:00:22]} Bxg3 {[%emt 0:00:04]} 15. fxg3 {[%emt 0:00:02]} c6 {[%emt 0:05:41]} 16. g4 {[%emt 0:02:45]} Bg6 {[%emt 0:00:02]} 17. Qd2 {[%emt 0:00:26]} Nbd5 {[%emt 0:00:34]} 18. Ne5 {[%emt 0:00:30]} Kg7 {[%emt 0:02:10]} 19. Rad1 {[%emt 0:00:19]} Re8 {[%emt 0:00:02]} 20. Nxd5 {[%emt 0:01:08]} cxd5 {[%emt 0:00:29]} 21. Qb4 {[%emt 0:01:02]} Be4 {[%emt 0:01:12]} 22. Qxb7 {[%emt 0:00:30]} Re7 {[%emt 0:00:01]} 23. Qa6 {[%emt 0:01:58]} Re6 {[%emt 0:00:58]} 24. Qf1 {[%emt 0:00:06]} Qe7 {[%emt 0:01:31]} 25. Qf2 {[%emt 0:00:19]} Rb8 {[%emt 0:01:03]} 26. Rc1 {[%emt 0:00:25]} Rxb3 {[%emt 0:00:38]} 27. axb3 {[%emt 0:00:07]} Qb4 {[%emt 0:00:06]} 28. Qe3 {[%emt 0:00:29]} Qb6 {[%emt 0:00:22]} 29. Kh2 {[%emt 0:00:47]} Qd6 {[%emt 0:00:03]} 30. Rc6 {[%emt 0:00:37]} Qe7 {[%emt 0:00:01]} 31. Rec1 {[%emt 0:00:14]} Rxe5 {[%emt 0:00:21]} 32. dxe5 {[%emt 0:00:04]} Qxe5+ {[%emt 0:00:02]} 33. Qg3 {[%emt 0:00:08]} Qxb2 {[%emt 0:00:07]} 34. Rf1 {[%emt 0:00:07]} Nd7 {[%emt 0:01:02]} 35. Qc3+ {[%emt 0:00:24]} Qxc3 {[%emt 0:00:06]} 36. Rxc3 {[%emt 0:00:02]} Ne5 {[%emt 0:00:45]} 37. Rc7 {[%emt 0:00:05]} Kg6 {[%emt 0:00:57]} 38. Rxa7 {[%emt 0:00:08]} f6 {[%emt 0:00:09]} 39. Ra6 {[%emt 0:00:15]} Kg7 {[%emt 0:00:12]} 40. Raxf6 {[%emt 0:00:11]} Bd3 {[%emt 0:00:00]} 41. R1f2 {[%emt 0:00:04]} Bg6 {[%emt 0:00:05]} 42. Rd6 {[%emt 0:00:08]} Nd3 {[%emt 0:00:00]} 43. Rd7+ {[%emt 0:00:08]} Kg8 {[%emt 0:00:02]} 44. Rc2 {[%emt 0:00:08]} Bf7 {[%emt 0:00:21]} 45. Rcc7 {[%emt 0:00:31]} 1-0

[Event "FIDE Open World Rapid 2024"]
[Site "New York"]
[Date "2024.12.27"]
[Round "6.41"]
[White "Muradli, Mahammad"]
[Black "Cheparinov, Ivan"]
[Result "1-0"]
[ECO "A13"]
[WhiteElo "2588"]
[BlackElo "2646"]
[Annotator "ChessBase"]
[PlyCount "105"]
[EventDate "2024.12.14"]
[EventType "swiss"]
[EventCountry "USA"]
[SourceTitle "playchess.com"]
[Source "ChessBase"]
[SourceQuality "1"]
[TimeControl "900+10"]

1. Nf3 {[%emt 0:00:02]} d5 {[%emt 0:00:05]} 2. c4 {[%emt 0:00:03]} e6 {[%emt 0:00:03]} 3. g3 {[%emt 0:00:02]} dxc4 {[%emt 0:00:12]} 4. Bg2 {[%emt 0:00:07]} Nd7 {[%emt 0:00:11]} 5. Qa4 {[%emt 0:00:20]} a6 {[%emt 0:00:03]} 6. Qxc4 {[%emt 0:00:06]} b5 {[%emt 0:00:12]} 7. Qc2 {[%emt 0:00:28]} Bb7 {[%emt 0:00:10]} 8. Nc3 {[%emt 0:00:21]} Ngf6 {[%emt 0:00:16]} 9. a4 {[%emt 0:00:13]} b4 {[%emt 0:00:16]} 10. Nd1 {[%emt 0:00:29]} c5 {[%emt 0:00:43]} 11. Ne3 {[%emt 0:00:13]} Be7 {[%emt 0:00:03]} 12. O-O {[%emt 0:00:09]} O-O {[%emt 0:00:05]} 13. Nc4 {[%emt 0:01:44]} a5 {[%emt 0:01:07]} 14. d3 {[%emt 0:02:52]} Nb6 {[%emt 0:00:14]} 15. Nfd2 {[%emt 0:00:14]} Bxg2 {[%emt 0:00:11]} 16. Kxg2 {[%emt 0:00:02]} Nfd5 {[%emt 0:00:42]} 17. e4 {[%emt 0:01:47]} Nxc4 {[%emt 0:02:43]} 18. dxc4 {[%emt 0:00:01]} b3 {[%emt 0:01:30]} 19. Nxb3 {[%emt 0:00:51]} Nb4 {[%emt 0:00:02]} 20. Qe2 {[%emt 0:00:04]} Qb6 {[%emt 0:00:19]} 21. Be3 {[%emt 0:01:16]} Nc6 {[%emt 0:00:09]} 22. Nc1 {[%emt 0:00:18]} Rab8 {[%emt 0:01:14]} 23. Nd3 {[%emt 0:01:44]} Rfd8 {[%emt 0:00:01]} 24. Rfd1 {[%emt 0:00:06]} Nd4 {[%emt 0:00:02]} 25. Bxd4 {[%emt 0:01:38]} Rxd4 {[%emt 0:00:02]} 26. Ne5 {[%emt 0:00:19]} Qc7 {[%emt 0:02:46]} 27. Nf3 {[%emt 0:00:37]} Rxd1 {[%emt 0:00:10]} 28. Rxd1 {[%emt 0:00:00]} h6 {[%emt 0:01:10]} 29. Rd3 {[%emt 0:00:14]} Qb7 {[%emt 0:00:30]} 30. b3 {[%emt 0:00:09]} Bf6 {[%emt 0:00:02]} 31. e5 {[%emt 0:00:24]} Be7 {[%emt 0:00:03]} 32. Kg1 {[%emt 0:00:01]} Qc6 {[%emt 0:00:14]} 33. Nd2 {[%emt 0:00:13]} f5 {[%emt 0:00:43]} 34. Nb1 {[%emt 0:01:31]} Bg5 {[%emt 0:02:31]} 35. h4 {[%emt 0:00:57]} Be7 {[%emt 0:00:18]} 36. Na3 {[%emt 0:00:27]} f4 {[%emt 0:00:10]} 37. Qf3 {[%emt 0:00:44]} Qxf3 {[%emt 0:00:02]} 38. Rxf3 {[%emt 0:00:02]} fxg3 {[%emt 0:00:01]} 39. fxg3 {[%emt 0:00:01]} Rd8 {[%emt 0:00:01]} 40. Nb5 {[%emt 0:00:01]} Rd1+ {[%emt 0:00:55]} 41. Kf2 {[%emt 0:00:01]} g5 {[%emt 0:00:14]} 42. hxg5 {[%emt 0:00:21]} Bxg5 {[%emt 0:00:08]} 43. Nd6 {[%emt 0:00:32]} Rd2+ {[%emt 0:00:29]} 44. Kf1 {[%emt 0:00:23]} Rd1+ {[%emt 0:00:04]} 45. Kg2 {[%emt 0:00:01]} Re1 {[%emt 0:00:10]} 46. Nb7 {[%emt 0:00:01]} Rxe5 {[%emt 0:00:12]} 47. Nxa5 {[%emt 0:00:01]} Re1 {[%emt 0:00:23]} 48. Nc6 {[%emt 0:00:36]} e5 {[%emt 0:00:06]} 49. Rf1 {[%emt 0:00:13]} Re2+ {[%emt 0:00:10]} 50. Rf2 {[%emt 0:00:02]} Re1 {[%emt 0:00:02]} 51. Ra2 {[%emt 0:00:22]} e4 {[%emt 0:00:19]} 52. a5 {[%emt 0:00:01]} e3 {[%emt 0:00:05]} 53. a6 {[%emt 0:00:01]} 1-0

[Event "FIDE Open World Rapid 2024"]
[Site "New York"]
[Date "2024.12.27"]
[Round "6.41"]
[White "Grahn, Vidar"]
[Black "Horvath, Dominik"]
[Result "0-1"]
[ECO "D85"]
[WhiteElo "2263"]
[BlackElo "2542"]
[Annotator "ChessBase"]
[PlyCount "110"]
[EventDate "2024.12.14"]
[EventType "swiss"]
[EventCountry "USA"]
[SourceTitle "playchess.com"]
[Source "ChessBase"]
[SourceQuality "1"]
[TimeControl "900+10"]

1. d4 {[%emt 0:00:03]} Nf6 {[%emt 0:00:01]} 2. c4 {[%emt 0:00:01]} g6 {[%emt 0:00:01]} 3. Nc3 {[%emt 0:00:03]} d5 {[%emt 0:00:01]} 4. cxd5 {[%emt 0:00:15]} Nxd5 {[%emt 0:00:01]} 5. e4 {[%emt 0:00:01]} Nxc3 {[%emt 0:00:01]} 6. bxc3 {[%emt 0:00:01]} Bg7 {[%emt 0:00:01]} 7. Nf3 {[%emt 0:00:04]} c5 {[%emt 0:00:03]} 8. Rb1 {[%emt 0:00:00]} O-O {[%emt 0:00:03]} 9. Be2 {[%emt 0:00:03]} cxd4 {[%emt 0:00:02]} 10. cxd4 {[%emt 0:00:01]} Qa5+ {[%emt 0:00:01]} 11. Bd2 {[%emt 0:00:02]} Qxa2 {[%emt 0:00:01]} 12. O-O {[%emt 0:00:04]} b6 {[%emt 0:00:01]} 13. Be3 {[%emt 0:05:14]} Qe6 {[%emt 0:00:15]} 14. Nd2 {[%emt 0:01:17]} Ba6 {[%emt 0:00:17]} 15. Bxa6 {[%emt 0:00:26]} Nxa6 {[%emt 0:00:01]} 16. Qa4 {[%emt 0:00:08]} Nc7 {[%emt 0:00:52]} 17. Rfc1 {[%emt 0:00:01]} Ne8 {[%emt 0:00:01]} 18. d5 {[%emt 0:00:58]} Qe5 {[%emt 0:00:08]} 19. f4 {[%emt 0:00:08]} Qb8 {[%emt 0:00:07]} 20. e5 {[%emt 0:00:17]} Qb7 {[%emt 0:00:29]} 21. Rc6 {[%emt 0:00:21]} Rd8 {[%emt 0:01:26]} 22. Qc4 {[%emt 0:00:25]} Qd7 {[%emt 0:00:02]} 23. Ra1 {[%emt 0:01:11]} Kh8 {[%emt 0:00:43]} 24. Ne4 {[%emt 0:00:48]} h6 {[%emt 0:00:38]} 25. Nc3 {[%emt 0:00:12]} f6 {[%emt 0:01:32]} 26. e6 {[%emt 0:00:41]} Qb7 {[%emt 0:00:01]} 27. f5 {[%emt 0:00:31]} Nd6 {[%emt 0:00:04]} 28. Rxd6 {[%emt 0:01:01]} exd6 {[%emt 0:00:01]} 29. Nb5 {[%emt 0:00:19]} a6 {[%emt 0:00:29]} 30. Nd4 {[%emt 0:00:18]} Rc8 {[%emt 0:00:01]} 31. Nc6 {[%emt 0:00:06]} b5 {[%emt 0:00:03]} 32. Qh4 {[%emt 0:00:31]} g5 {[%emt 0:00:01]} 33. Qg3 {[%emt 0:00:00]} Rxc6 {[%emt 0:00:30]} 34. dxc6 {[%emt 0:00:02]} Qxc6 {[%emt 0:00:01]} 35. Rd1 {[%emt 0:00:01]} Rd8 {[%emt 0:00:40]} 36. e7 {[%emt 0:00:12]} Re8 {[%emt 0:00:07]} 37. Rxd6 {[%emt 0:00:03]} Qc7 {[%emt 0:00:43]} 38. Rxa6 {[%emt 0:01:22]} Qxe7 {[%emt 0:00:48]} 39. Bf2 {[%emt 0:01:38]} Qe4 {[%emt 0:00:17]} 40. h3 {[%emt 0:00:31]} Qxf5 {[%emt 0:00:03]} 41. Qb3 {[%emt 0:00:16]} Re2 {[%emt 0:01:13]} 42. Qg3 {[%emt 0:00:54]} Qb1+ {[%emt 0:00:54]} 43. Kh2 {[%emt 0:00:01]} Qe4 {[%emt 0:00:33]} 44. Ra7 {[%emt 0:00:47]} f5 {[%emt 0:00:22]} 45. Qb8+ {[%emt 0:00:33]} Qe8 {[%emt 0:00:29]} 46. Qxe8+ {[%emt 0:00:27]} Rxe8 {[%emt 0:00:03]} 47. Rb7 {[%emt 0:00:01]} Re2 {[%emt 0:00:07]} 48. Bc5 {[%emt 0:00:25]} Be5+ {[%emt 0:00:18]} 49. Kg1 {[%emt 0:00:06]} Bg3 {[%emt 0:00:02]} 50. Re7 {[%emt 0:00:28]} Rc2 {[%emt 0:00:29]} 51. Bd4+ {[%emt 0:00:05]} Kg8 {[%emt 0:00:01]} 52. Rg7+ {[%emt 0:00:11]} Kf8 {[%emt 0:00:01]} 53. Kf1 {[%emt 0:00:03]} Rd2 {[%emt 0:00:18]} 54. Rd7 {[%emt 0:00:13]} Ke8 {[%emt 0:00:01]} 55. Rd5 {[%emt 0:00:01]} b4 {[%emt 0:00:02]} 0-1

[Event "FIDE Open World Rapid 2024"]
[Site "New York"]
[Date "2024.12.27"]
[Round "6.42"]
[White "Zarnicki, Pablo"]
[Black "Meier, Georg"]
[Result "1/2-1/2"]
[ECO "C07"]
[WhiteElo "2514"]
[BlackElo "2599"]
[Annotator "ChessBase"]
[PlyCount "69"]
[EventDate "2024.12.14"]
[EventType "swiss"]
[EventCountry "USA"]
[SourceTitle "playchess.com"]
[Source "ChessBase"]
[SourceQuality "1"]
[TimeControl "900+10"]

1. e4 {[%emt 0:00:02]} e6 {[%emt 0:00:01]} 2. d4 {[%emt 0:00:03]} d5 {[%emt 0:00:01]} 3. Nd2 {[%emt 0:00:07]} c5 {[%emt 0:00:06]} 4. exd5 {[%emt 0:00:04]} Qxd5 {[%emt 0:00:03]} 5. Ngf3 {[%emt 0:00:02]} cxd4 {[%emt 0:00:03]} 6. Bc4 {[%emt 0:00:03]} Qd7 {[%emt 0:00:02]} 7. O-O {[%emt 0:00:07]} Nc6 {[%emt 0:00:02]} 8. Nb3 {[%emt 0:00:03]} Nf6 {[%emt 0:00:03]} 9. Nbxd4 {[%emt 0:00:05]} Nxd4 {[%emt 0:00:02]} 10. Qxd4 {[%emt 0:00:02]} Qxd4 {[%emt 0:00:23]} 11. Nxd4 {[%emt 0:00:02]} Bd7 {[%emt 0:00:05]} 12. Be2 {[%emt 0:00:22]} Bc5 {[%emt 0:01:21]} 13. Nb3 {[%emt 0:00:23]} Bd6 {[%emt 0:02:57]} 14. Rd1 {[%emt 0:00:34]} Ke7 {[%emt 0:00:04]} 15. Bf3 {[%emt 0:00:07]} Rac8 {[%emt 0:00:16]} 16. c3 {[%emt 0:00:57]} Bc6 {[%emt 0:00:15]} 17. Bxc6 {[%emt 0:00:18]} Rxc6 {[%emt 0:00:02]} 18. Be3 {[%emt 0:00:34]} b6 {[%emt 0:03:49]} 19. Nd4 {[%emt 0:00:34]} Rcc8 {[%emt 0:00:46]} 20. f3 {[%emt 0:01:11]} Rhd8 {[%emt 0:00:25]} 21. a4 {[%emt 0:00:17]} a6 {[%emt 0:00:05]} 22. Bf2 {[%emt 0:02:17]} Ke8 {[%emt 0:00:36]} 23. g3 {[%emt 0:01:01]} Bc5 {[%emt 0:00:23]} 24. Nc2 {[%emt 0:00:22]} Nd5 {[%emt 0:01:32]} 25. Rd3 {[%emt 0:01:14]} Bxf2+ {[%emt 0:01:41]} 26. Kxf2 {[%emt 0:00:02]} Rc4 {[%emt 0:00:01]} 27. Ne3 {[%emt 0:01:09]} Nxe3 {[%emt 0:00:14]} 28. Kxe3 {[%emt 0:00:03]} h5 {[%emt 0:00:32]} 29. Rxd8+ {[%emt 0:01:03]} Kxd8 {[%emt 0:00:02]} 30. Rd1+ {[%emt 0:00:01]} Kc7 {[%emt 0:00:40]} 31. Rd4 {[%emt 0:00:02]} Rc5 {[%emt 0:00:01]} 32. Kd3 {[%emt 0:00:33]} Rg5 {[%emt 0:00:51]} 33. Rc4+ {[%emt 0:00:50]} Kd6 {[%emt 0:00:04]} 34. Rd4+ {[%emt 0:00:07]} Kc6 {[%emt 0:00:02]} 35. Rc4+ {[%emt 0:00:03]} 1/2-1/2

[Event "FIDE Open World Rapid 2024"]
[Site "New York"]
[Date "2024.12.27"]
[Round "6.42"]
[White "Makoto, Rodwell"]
[Black "Meylan, Andre"]
[Result "0-1"]
[ECO "E05"]
[WhiteElo "2334"]
[BlackElo "2138"]
[Annotator "ChessBase"]
[PlyCount "92"]
[EventDate "2024.12.14"]
[EventType "swiss"]
[EventCountry "USA"]
[SourceTitle "playchess.com"]
[Source "ChessBase"]
[SourceQuality "1"]
[TimeControl "900+10"]

1. Nf3 {[%emt 0:00:03]} Nf6 {[%emt 0:00:01]} 2. c4 {[%emt 0:00:01]} e6 {[%emt 0:00:04]} 3. g3 {[%emt 0:00:01]} d5 {[%emt 0:00:16]} 4. d4 {[%emt 0:00:02]} Be7 {[%emt 0:00:08]} 5. Bg2 {[%emt 0:00:02]} O-O {[%emt 0:00:06]} 6. O-O {[%emt 0:00:03]} dxc4 {[%emt 0:00:05]} 7. Qc2 {[%emt 0:00:02]} a6 {[%emt 0:00:03]} 8. a4 {[%emt 0:00:02]} Bd7 {[%emt 0:00:02]} 9. Qxc4 {[%emt 0:00:03]} Bc6 {[%emt 0:00:13]} 10. Bg5 {[%emt 0:00:09]} Nbd7 {[%emt 0:00:16]} 11. Nc3 {[%emt 0:00:11]} h6 {[%emt 0:00:02]} 12. Bxf6 {[%emt 0:00:08]} Nxf6 {[%emt 0:00:06]} 13. Rfd1 {[%emt 0:00:24]} a5 {[%emt 0:01:17]} 14. e3 {[%emt 0:00:45]} Bxf3 {[%emt 0:00:26]} 15. Bxf3 {[%emt 0:00:01]} c6 {[%emt 0:00:01]} 16. Ne2 {[%emt 0:00:25]} Qb6 {[%emt 0:00:35]} 17. Qc2 {[%emt 0:00:13]} Rfd8 {[%emt 0:01:13]} 18. Nf4 {[%emt 0:00:07]} Rac8 {[%emt 0:00:45]} 19. Rac1 {[%emt 0:00:19]} Bf8 {[%emt 0:02:28]} 20. h4 {[%emt 0:00:59]} Nd5 {[%emt 0:02:05]} 21. Bxd5 {[%emt 0:00:36]} exd5 {[%emt 0:00:13]} 22. Kg2 {[%emt 0:00:53]} Rc7 {[%emt 0:01:09]} 23. Qe2 {[%emt 0:01:56]} Qb4 {[%emt 0:00:24]} 24. Qc2 {[%emt 0:01:44]} Qd6 {[%emt 0:00:07]} 25. Nd3 {[%emt 0:00:34]} Qg6 {[%emt 0:01:02]} 26. Qd2 {[%emt 0:00:57]} Ra8 {[%emt 0:00:01]} 27. Nf4 {[%emt 0:00:43]} Qd6 {[%emt 0:00:18]} 28. Rc5 {[%emt 0:00:50]} b6 {[%emt 0:02:31]} 29. Rc2 {[%emt 0:00:02]} Rac8 {[%emt 0:00:18]} 30. Rdc1 {[%emt 0:00:05]} Qd7 {[%emt 0:00:07]} 31. Qe2 {[%emt 0:00:59]} Bd6 {[%emt 0:00:14]} 32. Nd3 {[%emt 0:00:09]} c5 {[%emt 0:00:40]} 33. dxc5 {[%emt 0:02:50]} bxc5 {[%emt 0:00:00]} 34. Qh5 {[%emt 0:00:22]} Qe6 {[%emt 0:00:22]} 35. Rd2 {[%emt 0:00:34]} Rb8 {[%emt 0:00:30]} 36. Rcd1 {[%emt 0:00:16]} Rcb7 {[%emt 0:00:36]} 37. Qf3 {[%emt 0:00:31]} c4 {[%emt 0:00:30]} 38. Nc1 {[%emt 0:00:24]} Rxb2 {[%emt 0:00:17]} 39. Rxd5 {[%emt 0:00:03]} Bf8 {[%emt 0:00:12]} 40. Ne2 {[%emt 0:00:46]} Ra2 {[%emt 0:00:29]} 41. Nd4 {[%emt 0:00:40]} Qe8 {[%emt 0:00:19]} 42. Rxa5 {[%emt 0:00:21]} Rxa4 {[%emt 0:00:04]} 43. Rxa4 {[%emt 0:00:34]} Qxa4 {[%emt 0:00:01]} 44. Nc6 {[%emt 0:00:17]} Rc8 {[%emt 0:00:13]} 45. Ne5 {[%emt 0:00:22]} Qe8 {[%emt 0:00:24]} 46. Qd5 {[%emt 0:00:51]} Rc5 {[%emt 0:00:09]} 0-1

[Event "FIDE Open World Rapid 2024"]
[Site "New York"]
[Date "2024.12.27"]
[Round "6.43"]
[White "Fressinet, Laurent"]
[Black "Vakhidov, Jakhongir"]
[Result "0-1"]
[ECO "B51"]
[WhiteElo "2588"]
[BlackElo "2546"]
[Annotator "ChessBase"]
[PlyCount "87"]
[EventDate "2024.12.14"]
[EventType "swiss"]
[EventCountry "USA"]
[SourceTitle "playchess.com"]
[Source "ChessBase"]
[SourceQuality "1"]
[TimeControl "900+10"]

1. e4 {[%emt 0:00:03]} c5 {[%emt 0:02:15]} 2. Nf3 {[%emt 0:00:04]} d6 {[%emt 0:00:03]} 3. Bb5+ {[%emt 0:00:08]} Nd7 {[%emt 0:00:08]} 4. a4 {[%emt 0:00:14]} Ngf6 {[%emt 0:00:04]} 5. Nc3 {[%emt 0:00:04]} a6 {[%emt 0:00:02]} 6. Be2 {[%emt 0:00:10]} g6 {[%emt 0:00:02]} 7. O-O {[%emt 0:00:25]} Bg7 {[%emt 0:00:03]} 8. a5 {[%emt 0:00:17]} b5 {[%emt 0:00:35]} 9. axb6 {[%emt 0:00:02]} Bb7 {[%emt 0:00:19]} 10. d3 {[%emt 0:00:49]} a5 {[%emt 0:00:17]} 11. Nd2 {[%emt 0:01:29]} Nxb6 {[%emt 0:01:17]} 12. f4 {[%emt 0:01:09]} O-O {[%emt 0:00:15]} 13. Bf3 {[%emt 0:00:03]} Nfd7 {[%emt 0:00:38]} 14. Qe1 {[%emt 0:01:20]} e6 {[%emt 0:01:45]} 15. e5 {[%emt 0:01:10]} Bxf3 {[%emt 0:00:31]} 16. Nxf3 {[%emt 0:00:02]} dxe5 {[%emt 0:00:07]} 17. fxe5 {[%emt 0:01:01]} Nxe5 {[%emt 0:00:07]} 18. Nxe5 {[%emt 0:00:57]} Qd4+ {[%emt 0:00:02]} 19. Kh1 {[%emt 0:01:28]} Qxe5 {[%emt 0:00:02]} 20. Ne4 {[%emt 0:00:01]} c4 {[%emt 0:04:44]} 21. Bf4 {[%emt 0:01:23]} Qb5 {[%emt 0:01:48]} 22. dxc4 {[%emt 0:02:46]} Nxc4 {[%emt 0:01:15]} 23. b3 {[%emt 0:00:01]} Nb6 {[%emt 0:00:24]} 24. Qh4 {[%emt 0:02:39]} Qh5 {[%emt 0:00:48]} 25. Qf2 {[%emt 0:01:12]} Nd5 {[%emt 0:00:13]} 26. Bd6 {[%emt 0:00:04]} Bxa1 {[%emt 0:00:16]} 27. Bxf8 {[%emt 0:00:02]} Rxf8 {[%emt 0:00:29]} 28. Rxa1 {[%emt 0:00:05]} Qe5 {[%emt 0:00:51]} 29. Re1 {[%emt 0:00:02]} Qf4 {[%emt 0:00:12]} 30. Qc5 {[%emt 0:00:32]} f5 {[%emt 0:00:18]} 31. Nd6 {[%emt 0:00:08]} Qb4 {[%emt 0:00:14]} 32. Qxb4 {[%emt 0:00:13]} Nxb4 {[%emt 0:00:06]} 33. c4 {[%emt 0:00:19]} Nd3 {[%emt 0:00:12]} 34. Ra1 {[%emt 0:00:14]} Rb8 {[%emt 0:00:11]} 35. Nb5 {[%emt 0:00:08]} Nc5 {[%emt 0:00:06]} 36. Rxa5 {[%emt 0:00:09]} Nxb3 {[%emt 0:00:01]} 37. Ra6 {[%emt 0:00:13]} e5 {[%emt 0:00:18]} 38. Kg1 {[%emt 0:00:07]} e4 {[%emt 0:00:14]} 39. Ra7 {[%emt 0:00:12]} Nd2 {[%emt 0:00:06]} 40. Nd6 {[%emt 0:00:12]} e3 {[%emt 0:00:02]} 41. Ra1 {[%emt 0:00:01]} Rd8 {[%emt 0:00:16]} 42. c5 {[%emt 0:00:11]} Nb3 {[%emt 0:00:03]} 43. Nb7 {[%emt 0:00:15]} Rb8 {[%emt 0:00:12]} 44. Rb1 {[%emt 0:00:13]} 0-1